Cogmind - Beta 14 @@@ ROGUE MODE // 2025.03.08 @ 09:27:35 Player: BoomBlip Result: Destroyed by G-47 Trooper with Particle Gun Performance ------------- Evolutions (3) 1500 Regions Visited (8) 1600 Robots Destroyed (60) 300 Value Destroyed (2210) 2210 Prototype IDs (26) 520 Alien Tech Used (0) 0 Bonus (452) 452 TOTAL SCORE: 6582 Bonus ------- High Alert Combat Kills 108 Follower Combat Kills 62 Aligned with FarCom 300 Friendly Fire -18 Cogmind --------- Core Integrity 0/700 Matter 249/300 Energy 98/100 System Corruption 15% Temperature Cool (9) Movement Core (50) Location -7/Lower Caves Parts ------- > --- POWER (1) -------- (None) > --- PROPULSION (4) --- (None) > --- UTILITY (6) ------ (None) > --- WEAPON (2) ------- (None) > --- INVENTORY (5) ---- Cooled VTOL Module Improved Medium Armor Plating PSU Rigger Heavy EM Shotgun Mini Grenade Launcher Peak State ------------ > --- POWER ------------ Improved Ion Engine > --- PROPULSION ------- Light Treads Light Treads Light Treads Light Treads > --- UTILITY ---------- Heat Sink Heat Sink High-capacity Storage Unit Improved Terrain Scanner Improved Medium Armor Plating Insulated Plating > --- WEAPON ----------- Heavy EM Shotgun Gauss Rifle > --- INVENTORY -------- Light Treads Light Treads Wheel Wheel Cooled VTOL Module Large Storage Unit Improved Light Armor Plating Hacking Suite Drone Bay PSU Rigger Heavy Laser Assault Rifle Heavy Assault Rifle Heavy Assault Rifle Heavy Assault Rifle Improved Light Cannon Rocket Launcher Rocket Launcher Remote Datajack [Rating: 32] Favorites ----------- Power Light Ion Engine Engine Light Ion Engine Power Core Light Nuclear Core Propulsion Light Treads Treads Light Treads Leg Aluminum Leg Wheel Wheel Flight Unit Cooled VTOL Module Utility Heat Sink Device Heat Sink Storage High-capacity Storage Unit Protection Light Armor Plating Weapon Light Assault Rifle Energy Gun Heavy EM Shotgun Ballistic Gun Light Assault Rifle Launcher Rocket Launcher Build | -11 -10 -10 -10 -9 -8 -8 -7 -7 ------- Run | Yrd Mat Min Exi Min Mat Sto Fac Low Slots Evolved 6 | . . . . . 4 . 2 . Power . | . . . . . . . . . Propulsion 2 | . . . . . 1 . 1 . Utility 4 | . . . . . 3 . 1 . Weapon . | . . . . . . . . . Parts Attached 58 | . 1 . 1 . 21 15 20 . Power 6 | . . . . . 3 1 2 . Engine 4 | . . . . . 1 1 2 . Core 2 | . . . . . 2 . . . Reactor . | . . . . . . . . . Propulsion 21 | . . . . . 8 6 7 . Treads 15 | . . . . . 4 6 5 . Leg 2 | . . . . . 2 . . . Wheel 3 | . . . . . 2 . 1 . Hover . | . . . . . . . . . Flight 1 | . . . . . . . 1 . Utility 19 | . 1 . 1 . 4 8 5 . Device 9 | . 1 . . . 1 4 3 . Storage 2 | . . . 1 . 1 . . . Processor . | . . . . . . . . . Hackware . | . . . . . . . . . Protection 8 | . . . . . 2 4 2 . Artifact . | . . . . . . . . . Weapon 12 | . . . . . 6 . 6 . Energy Gun 1 | . . . . . . . 1 . Energy Cannon . | . . . . . . . . . Ballistic Gun 10 | . . . . . 6 . 4 . Ballistic Cannon . | . . . . . . . . . Launcher 1 | . . . . . . . 1 . Special Weapon . | . . . . . . . . . Impact Weapon . | . . . . . . . . . Slashing Weapon . | . . . . . . . . . Piercing Weapon . | . . . . . . . . . Special Melee Weapon . | . . . . . . . . . Unidentified Prototypes 3 | . . . . . 1 . 2 . Parts Lost 27 | . . . . . 7 4 16 . Power 4 | . . . . . 2 . 2 . Propulsion 10 | . . . . . 2 . 8 . Utility 9 | . . . . . 1 4 4 . Weapon 4 | . . . . . 2 . 2 . Highest Loss Streak 8 | . . . . . 7 4 8 . To Critical Strikes 1 | . . . . . 1 . . . Average Slot Usage (%) 86 | . 93 100 100 100 68 89 86 6 Engine 8 | . 14 14 14 14 4 9 6 . Treads 10 | . . . . . 3 27 22 . Leg 12 | . 28 28 28 28 13 . . . Device 15 | . 7 14 14 14 10 15 21 . Storage 10 | . 14 14 14 14 9 9 6 . Protection 5 | . . . . . 2 10 12 . Ballistic Gun 19 | . 28 28 28 28 17 18 11 . Peak Build Rating 32 | 6 7 7 8 9 17 24 32 6 Average Rating 15 | 6 6 7 7 8 13 20 27 4 On Entrance 9 | 6 6 7 7 8 9 17 23 6 Naked Turns 43 | . . . . . . . 24 19 Heaviest Build 68 | 11 12 12 27 27 58 66 68 . Greatest Support 80 | 20 20 20 20 20 40 60 80 5 Greatest Overweight (x) 5 | . . . 1 1 4 1 5 . Average Overweight (x) . | . . . . 1 1 . . . Largest Inventory Capacity 20 | 8 8 8 15 15 20 20 20 5 Average Capacity 15 | 8 8 8 8 15 18 20 19 5 Most Carried 20 | 6 7 7 9 13 16 20 20 5 Average Carried 13 | 6 6 7 7 12 13 18 18 4 Final Capacity 20 | 8 8 8 15 15 20 20 5 5 Final Carried 20 | 6 7 7 9 13 16 20 4 5 Class Distribution -------------------- 30% | Mutant 23% | Scavenger-Skirmisher 23% | Scavenger-Mutant 22% | Skirmisher Dominant Class ---------------- Mutant | -10/Materials Mutant | -10/Mines Mutant | -10/Exiles Skirmisher | -9/Mines Skirmisher | -8/Materials Scavenger-Mutant | -8/Storage Scavenger-Skirmisher | -7/Factory Mutant | -7/Lower Caves Resources | -11 -10 -10 -10 -9 -8 -8 -7 -7 ----------- Run | Yrd Mat Min Exi Min Mat Sto Fac Low Matter Collected 1441 | 200 19 . 3 10 421 383 405 . Remotely . | . . . . . . . . . Salvage Created 2569 | . 19 . . . 960 680 910 . Parts 121 | . 4 . . . 47 26 44 . Haulers Intercepted 3 | . . . . . 2 1 . . Recyclers Shooed 4 | . . . . . . . 4 . Parts Field Recycled . | . . . . . . . . . Retrieved Matter . | . . . . . . . . . Parts Self-Destructed . | . . . . . . . . . Prevented . | . . . . . . . . . Kills | -11 -10 -10 -10 -9 -8 -8 -7 -7 ------- Run | Yrd Mat Min Exi Min Mat Sto Fac Low Combat Hostiles Destroyed 46 | . . . . . 17 11 18 . Melee 1 | . . . . . . . 1 . Guns 42 | . . . . . 17 11 14 . AOE 3 | . . . . . . . 3 . Classes Destroyed 12 | . 1 . . . 8 . 3 . Worker 2 | . . . . . 1 . 1 . Builder 3 | . . . . . . . 3 . Tunneler 1 | . . . . . 1 . . . Hauler 3 | . . . . . 2 1 . . Recycler 4 | . . . . . 2 1 1 . Watcher 1 | . 1 . . . . . . . Swarmer 9 | . . . . . 6 . 3 . Grunt 21 | . . . . . 7 6 8 . Brawler 2 | . . . . . 1 . 1 . Sentry 10 | . . . . . 3 5 2 . Specialist 2 | . . . . . . . 2 . Programmer 2 | . . . . . . . 2 . Best Kill Streak 10 | . 1 . . . 5 5 10 . Combat Bots Only 6 | . . . . . 4 5 6 . Max Kills in Single Turn 3 | . 1 . . . 2 1 3 . Gunslinging 1 | . . . . . 1 . . . Exploded 2 | . . . . . . . 2 . Melee 1 | . . . . . . . 1 . Uniques/NPCs Destroyed . | . . . . . . . . . Combat | -11 -10 -10 -10 -9 -8 -8 -7 -7 -------- Run | Yrd Mat Min Exi Min Mat Sto Fac Low Hostile Shots Fired 457 | . . . . . 101 74 243 39 Missed 151 | . . . . . 26 20 85 20 Damage Taken 4713 | . . . . . 1068 881 2449 315 Core 957 | . . . . . 155 93 444 265 Absorbed by Shields . | . . . . . . . . . Redirected to Shielding 89 | . . . . . . 8 81 . Ignored by Resistances 9 | . . . . . . . 9 . Core Remaining (%) 84 | 100 . . . 100 . 54 . . Volleys Fired 161 | . 3 . . . 64 40 54 . Largest 2 | . 2 . . . 2 2 2 . Hottest 78 | . 40 . . . 48 46 78 . Shots Fired 305 | . 6 . . . 123 76 100 . Gun 301 | . 6 . . . 123 76 96 . Cannon . | . . . . . . . . . Launcher 4 | . . . . . . . 4 . Special . | . . . . . . . . . Kinetic 285 | . 6 . . . 123 76 80 . Thermal . | . . . . . . . . . Explosive 4 | . . . . . . . 4 . Electromagnetic 16 | . . . . . . . 16 . Robot Hit Streak 16 | . 2 . . . 12 16 8 . Robot Miss Streak 5 | . 3 . . . 5 1 3 . Penetration Max 1 | . . . . . 1 . 1 . Secondary Targets 7 | . . . . . 1 3 3 . Max Gunslinging Chain 1 | . . . . . 1 1 1 . Shots Hit Robots 224 | . 2 . . . 88 63 71 . Core Hits 119 | . 1 . . . 46 25 47 . Critical Kills 2 | . . . . . 1 . 1 . Critical Parts Destroyed 1 | . . . . . . . 1 . Critical Strikes 3 | . . . . . 1 . 2 . Destroy 3 | . . . . . 1 . 2 . Melee Attacks . | . . . . . . . . . Impact . | . . . . . . . . . Slashing . | . . . . . . . . . Piercing . | . . . . . . . . . Sneak Attacks . | . . . . . . . . . Combat Hostiles . | . . . . . . . . . Follow-up Attacks . | . . . . . . . . . Damage Inflicted 4441 | . 23 . . . 1193 978 2247 . Guns 3511 | . 23 . . . 1180 968 1340 . Cannons . | . . . . . . . . . Explosions 884 | . . . . . . . 884 . Melee . | . . . . . . . . . Ramming 46 | . . . . . 13 10 23 . Kinetic 3236 | . 23 . . . 1180 968 1065 . Thermal 507 | . . . . . . . 507 . Explosive 377 | . . . . . . . 377 . Electromagnetic 275 | . . . . . . . 275 . Impact . | . . . . . . . . . Slashing . | . . . . . . . . . Piercing . | . . . . . . . . . Highest Corruption 15 | . . . . . 4 4 15 15 Average Corruption 4 | . . . . . 4 4 4 15 Corruption Purged . | . . . . . . . . . Corruption Blocked . | . . . . . . . . . Effects 37 | . . . . . 5 21 7 4 Message Errors 8 | . . . . . 1 4 1 2 Matter Fused 8 | . . . . . 1 5 2 . Heat Flow Errors 5 | . . . . . . 4 1 . Energy Discharges 2 | . . . . . 1 1 . . Data Loss (minor) 2 | . . . . . 1 1 . . Data Loss (major) 2 | . . . . . 1 1 . . Misfires 1 | . . . . . . . 1 . Alerts 1 | . . . . . . 1 . . Misdirections 3 | . . . . . . . 1 2 Weapon Failures 5 | . . . . . . 4 1 . Overload Shots . | . . . . . . . . . Overflow Damage 60 | . . . . . . . 60 . Projectiles . | . . . . . . . . . Explosions 60 | . . . . . . . 60 . Melee . | . . . . . . . . . Knockbacks 1 | . . . . . . . 1 . Impact 1 | . . . . . . . 1 . Kinetic . | . . . . . . . . . Secondary . | . . . . . . . . . Self-Inflicted Damage 59 | . . . . . . . 59 . Shots 1 | . . . . . . . 1 . Rammed 9 | . . . . . 1 3 5 . Targets Rammed 9 | . . . . . 1 3 5 . Kicked . | . . . . . . . . . Crushed . | . . . . . . . . . Highest Temperature 259 | . . . . . 27 259 178 . Average Temperature 72 | . . . . . 12 98 51 . Received Heat Transfer 1890 | . . . . . 438 477 786 189 Siege Activations . | . . . . . . . . . Robots Corrupted . | . . . . . . . . . Combat Hostiles . | . . . . . . . . . Parts Fried . | . . . . . . . . . Impact Corruptions . | . . . . . . . . . Robots Melted . | . . . . . . . . . Combat Hostiles . | . . . . . . . . . Parts Melted 1 | . . . . . 1 . . . Heat Transferred 400 | . . . . . . . 400 . Parts Sabotaged . | . . . . . . . . . Parts Stolen . | . . . . . . . . . Parts Stripped . | . . . . . . . . . Power Chain Reactions 1 | . . . . . . . 1 . Alert | -11 -10 -10 -10 -9 -8 -8 -7 -7 ------- Run | Yrd Mat Min Exi Min Mat Sto Fac Low Peak Influence 818 | . 7 2 . . 277 153 818 . Initial 117 | . . 2 . . . 117 . . Average 132 | . 4 2 . . 139 91 225 . Maximum Alert Level 3 | . . . . . 1 . 3 . Low Security (%) 83 | 100 100 100 . 100 82 100 66 . Level 1 5 | . . . . . 17 . . . Level 2 9 | . . . . . . . 30 . Level 3 1 | . . . . . . . 3 . Level 4 . | . . . . . . . . . Level 5 . | . . . . . . . . . High Security . | . . . . . . . . . Max Security . | . . . . . . . . . Squads Dispatched 15 | . . . . . 2 . 13 . Investigation 2 | . . . . . 1 . 1 . Extermination 3 | . . . . . . . 3 . Reinforcement 5 | . . . . . 1 . 4 . Assault 2 | . . . . . . . 2 . Garrison 3 | . . . . . . . 3 . Intercept . | . . . . . . . . . Searches Triggered . | . . . . . . . . . Construction Impeded 1 | . . . . . . . 1 . Haulers Reinforced . | . . . . . . . . . Active Scanning Responses . | . . . . . . . . . Cargo Convoy Interrupts 1 | . . . . . . . 1 . Stealth | -11 -10 -10 -10 -9 -8 -8 -7 -7 --------- Run | Yrd Mat Min Exi Min Mat Sto Fac Low Distress Signals 7 | . . . . . 4 . 3 . Communications Jammed . | . . . . . . . . . Distress Signals . | . . . . . . . . . Times Spotted 87 | . 1 . . . 31 11 40 4 Peak Tracking Total 12 | . 2 . . . 9 5 12 4 Tactical Retreats 8 | . . . . . 3 . 5 . Traps | -11 -10 -10 -10 -9 -8 -8 -7 -7 ------- Run | Yrd Mat Min Exi Min Mat Sto Fac Low Traps Triggered 5 | . . . . . 3 . 2 . Indirectly . | . . . . . . . . . Trap Hack Attempts . | . . . . . . . . . Triggered . | . . . . . . . . . Disarmed . | . . . . . . . . . Reprogrammed . | . . . . . . . . . Reused . | . . . . . . . . . Traps Extracted . | . . . . . . . . . Installed . | . . . . . . . . . Triggered 1 | . . . . . . . 1 . Machines | -11 -10 -10 -10 -9 -8 -8 -7 -7 ---------- Run | Yrd Mat Min Exi Min Mat Sto Fac Low Machines Disabled 12 | . . . . . . . 12 . Max in Single Turn 11 | . . . . . . . 11 . Garrison Access 2 | . . . . . . 1 1 . Machines Repaired . | . . . . . . . . . Machines Dismantled . | . . . . . . . . . Machines Sabotaged . | . . . . . . . . . Overloaded Fab Kills . | . . . . . . . . . Hacking | -11 -10 -10 -10 -9 -8 -8 -7 -7 --------- Run | Yrd Mat Min Exi Min Mat Sto Fac Low Machines Accessed 13 | . 1 . 3 . 5 3 1 . Terminals 9 | . 1 . . . 5 2 1 . Fabricators . | . . . . . . . . . Repair Stations . | . . . . . . . . . Recycling Units . | . . . . . . . . . Scanalyzers . | . . . . . . . . . Garrison Access 1 | . . . . . . 1 . . Total Hacks 48 | . 1 . 27 . 11 6 3 . Successful 35 | . . . 27 . 2 5 1 . Failed 13 | . 1 . . . 9 1 2 . Catastrophic 3 | . 1 . . . 1 1 . . Database Lockouts . | . . . . . . . . . Manual 17 | . 1 . 1 . 11 3 1 . Terminals 19 | . 1 . . . 11 4 3 . Fabricators . | . . . . . . . . . Repair Stations . | . . . . . . . . . Recycling Units . | . . . . . . . . . Scanalyzers . | . . . . . . . . . Garrison Access 2 | . . . . . . 2 . . Terminal Hacks 32 | . . . 27 . 1 3 1 . Record 26 | . . . 26 . . . . . Open Door 1 | . . . . . . 1 . . Branch Access Points 1 | . . . . . 1 . . . Locate Traps 1 | . . . . . . . 1 . Surveillance Status 1 | . . . . . . 1 . . Zone Layout 1 | . . . . . . 1 . . Derelict Proto ID Bank 1 | . . . 1 . . . . . Fabricator Hacks . | . . . . . . . . . Repair Station Hacks . | . . . . . . . . . Recycling Unit Hacks . | . . . . . . . . . Scanalyzer . | . . . . . . . . . Garrison Access Hacks 1 | . . . . . . 1 . . Seal Access 1 | . . . . . . 1 . . Unauthorized Hacks 2 | . . . . . 1 1 . . Terminals 2 | . . . . . 1 1 . . Operators 2 | . . . . . 1 1 . . Fabricators . | . . . . . . . . . Repair Stations . | . . . . . . . . . Recycling Units . | . . . . . . . . . Scanalyzers . | . . . . . . . . . Garrison Access . | . . . . . . . . . Data Cores Recovered . | . . . . . . . . . Used . | . . . . . . . . . Hacking Detections 6 | . 1 . . . 4 . 1 . Full Trace Events 1 | . . . . . 1 . . . Feedback Events . | . . . . . . . . . Feedback Blocked . | . . . . . . . . . Robot Schematics Acquired . | . . . . . . . . . Robots Built . | . . . . . . . . . Authchips . | . . . . . . . . . Time . | . . . . . . . . . Total Robot Build Rating . | . . . . . . . . . Part Schematics Acquired . | . . . . . . . . . Parts Built . | . . . . . . . . . Authchips . | . . . . . . . . . Time . | . . . . . . . . . Total Part Build Rating . | . . . . . . . . . Parts Repaired . | . . . . . . . . . Time . | . . . . . . . . . Parts Recycled . | . . . . . . . . . Recycled Matter . | . . . . . . . . . Retrieved Matter . | . . . . . . . . . Retrieved Components . | . . . . . . . . . Parts Scanalyzed . | . . . . . . . . . Part Schematics Acquired . | . . . . . . . . . Parts Damaged . | . . . . . . . . . Bothacking | -11 -10 -10 -10 -9 -8 -8 -7 -7 ------------ Run | Yrd Mat Min Exi Min Mat Sto Fac Low Used RIF Installer . | . . . . . . . . . Robots Hacked . | . . . . . . . . . Non-combat . | . . . . . . . . . Combat . | . . . . . . . . . Robot Hacks Applied . | . . . . . . . . . Relay Couplers Released 6 | . . . . . . . 6 . Machine Destruction 2 | . . . . . . . 2 . Programmers 4 | . . . . . . . 4 . Fabnet Peak Effective % . | . . . . . . . . . Robots Rewired . | . . . . . . . . . Allies Hacked . | . . . . . . . . . Hacks Repelled . | . . . . . . . . . Allies | -11 -10 -10 -10 -9 -8 -8 -7 -7 -------- Run | Yrd Mat Min Exi Min Mat Sto Fac Low Total Allies 5 | . . . . 5 . . . . Largest Group 5 | . . . . 5 5 . . . Highest-Rated Group 86 | . . . . 86 86 . . . Highest-Rated Ally 31 | . . . . 31 31 . . . Total Orders 5 | . . . . . . 5 . . EXPLORE 5 | . . . . . . 5 . . Ally Attacks 26 | . . . . . 26 . . . Total Damage 245 | . . . . . 245 . . . Kills 4 | . . . . . 4 . . . Allies Corrupted . | . . . . . . . . . Allies Melted . | . . . . . . . . . Intel | -11 -10 -10 -10 -9 -8 -8 -7 -7 ------- Run | Yrd Mat Min Exi Min Mat Sto Fac Low Robot Analysis Total . | . . . . . . . . . Derelict Logs Recovered 1 | . . 1 . . . . . . Drone Launches 15 | . . . . . . 15 . . Drone Recoveries 3 | . . . . . . 3 . . Exploration | -11 -10 -10 -10 -9 -8 -8 -7 -7 ------------- Run | Yrd Mat Min Exi Min Mat Sto Fac Low Turns Passed 5208 | 2 93 188 1100 460 1135 831 1326 73 Spaces Moved 2951 | 2 69 157 897 241 393 344 685 163 Core 79 | . . . . . . . 41 38 Treads 941 | . . . . . 78 344 519 . Legs 1679 | 2 69 157 897 241 313 . . . Wheels 4 | . . . . . 2 . 2 . Hover . | . . . . . . . . . Flight 248 | . . . . . . . 123 125 Fastest Speed 35 | 120 120 120 120 190 140 160 35 35 Average Speed 152 | 120 120 120 122 190 229 184 156 38 Slowest Speed 320 | 120 120 120 190 190 320 240 320 50 Overloaded Moves . | . . . . . . . . . Propulsion Burnouts . | . . . . . . . . . Robots Hopped 3 | . . . . . . . 2 1 Cave-ins Triggered 1 | . . . . . . . 1 . Exploration Rate (%) 36 | 2 21 50 93 47 30 47 23 19 Regions Visited 8 Branch Regions 5 Pre-discovered Areas 1 | . . . 1 . . . . . Known Exits Taken 1 | . . . . . 1 . . . Unknown Exits Taken 7 | 1 1 1 1 1 . 1 1 . Scrap Searched 2 | . . . . 2 . . . . Spaces Dug . | . . . . . . . . . Terrain Destroyed 61 | . . . . . . . 61 . Melee . | . . . . . . . . . Projectile . | . . . . . . . . . AOE 61 | . . . . . . . 61 . Terrain Rammed . | . . . . . . . . . Walls Destroyed . | . . . . . . . . . Machines Disabled . | . . . . . . . . . Actions | -11 -10 -10 -10 -9 -8 -8 -7 -7 --------- Run | Yrd Mat Min Exi Min Mat Sto Fac Low Total 3350 | 1 73 156 900 244 512 460 831 173 Wait 114 | . . . . . 17 39 48 10 Move 2937 | 1 68 156 896 240 392 343 680 161 Hop 3 | . . . . . . . 2 1 Pick Up 30 | . 1 . 2 4 7 5 11 . Fast Attach 24 | . 1 . . . 13 5 5 . Attach 13 | . . . . . 3 1 9 . Detach 1 | . . . . . . . . 1 Swap 21 | . . . 1 . 5 9 6 . Drop 31 | . . . 1 . 10 9 11 . Fire 161 | . 3 . . . 64 40 54 . Melee . | . . . . . . . . . Ram 2 | . . . . . . . 2 . Kick . | . . . . . . . . . Crush 7 | . . . . . 1 3 3 . Escape Stasis . | . . . . . . . . . Rewire . | . . . . . . . . . Trap . | . . . . . . . . . Miscellaneous 6 | . . . . . . 6 . . Route ------- -11/Scrapyard -10/Materials (discovered 2 exits: [*Min x2]) -10/Mines -10/Exiles -9/Mines -8/Materials -8/Storage -7/Factory -7/Lower Caves History --------- Turn | Location | Event 1 | -11/Scrapyard | Discovered new exit (range 1) 3 | -11/Scrapyard | Entered Materials 58 | -10/Materials | Discovered new exit (range 15) 78 | -10/Materials | Discovered new exit (range 15) 96 | -10/Materials | Entered Mines 278 | -10/Mines | Deemed a non-threat by the Exiles lab entrance 279 | -10/Mines | Discovered new exit (range 5) 284 | -10/Mines | Entered Exiles 310 | -10/Exiles | Build established: Mutant 314 | -10/Exiles | Met 8R-AWN 334 | -10/Exiles | Met EX-HEX 379 | -10/Exiles | Met EX-DEC 395 | -10/Exiles | Learned location of Zion (-6) 493 | -10/Exiles | Discovered new exit (range 10) 593 | -10/Exiles | Visited The Gauntlet 890 | -10/Exiles | Met EX-BIN 1016 | -10/Exiles | Aligned with FarCom system 1018 | -10/Exiles | Given EX-Vault access code 1050 | -10/Exiles | Opened EX-Vault 1056 | -10/Exiles | Found PSU Rigger 1081 | -10/Exiles | Warned to stay clear of 0b10 Research branches 1384 | -10/Exiles | Left Exiles lab with PSU Rigger 1384 | -10/Exiles | Entered Mines 1462 | -9/Mines | A weapon hastily lodged in a ceiling crevice suddenly fell to the ground 1557 | -9/Mines | Received a Rocket Launcher from a helpful Derelict 1688 | -9/Mines | Build established: Skirmisher 1780 | -9/Mines | Assisted by bots powering up and referring to "LRC-V3" 1820 | -9/Mines | Discovered new exit (range 8) 1844 | -9/Mines | Entered Materials 1844 | -8/Materials | Accompanied by 5 allies 1844 | -8/Materials | Evolved 4 slots: Propulsion x1, Utility x3 1845 | -8/Materials | Identified exit to Storage 1849 | -8/Materials | Led the pair of lost Derelicts to an unsafe place 1986 | -8/Materials | Lost 3 allies 2759 | -8/Materials | Lost 7 parts (2p2n1u2w) 2979 | -8/Materials | Entered Storage 3067 | -8/Storage | Build established: Scavenger-Mutant 3137 | -8/Storage | Lost 3 allies 3362 | -8/Storage | Lost 3 allies 3415 | -8/Storage | Lost 4 parts (4u) 3636 | -8/Storage | Discovered new exit (range 15) 3810 | -8/Storage | Entered Factory 3810 | -7/Factory | Evolved 2 slots: Propulsion x1, Utility x1 4245 | -7/Factory | Build established: Scavenger-Skirmisher 4265 | -7/Factory | Crushed by falling debris 4299 | -7/Factory | Lost 4 parts (1p2n1w) 4672 | -7/Factory | Garrison activated, responded to threat 4816 | -7/Factory | Lost 4 parts (3n1u) 5010 | -7/Factory | First assault squad dispatched 5021 | -7/Factory | Garrison activated, responded to threat 5069 | -7/Factory | System corruption reached 10% 5069 | -7/Factory | Released all parts (5) 5072 | -7/Factory | Core integrity fell below 50% 5080 | -7/Factory | Cargo convoy interrupted 5099 | -7/Factory | Lost 8 parts (1p3n3u1w) 5132 | -7/Factory | Discovered new exit (range 12) 5136 | -7/Factory | Entered Lower Caves 5164 | -7/Lower Caves | Core integrity fell below 20% 5209 | -7/Lower Caves | Destroyed by G-47 Trooper with Particle Gun Last Messages --------------- 05069_ Released Gauss Rifle. 05069_ Released Imp. Heat Sink. 05069_ Released Hvy. Assault Rifle. 05069_ Slammed into G-47 Trooper. 05071_ Dropped Imp. Light Cannon. 05072_ System corrupted: Heat flow error (+203). 05072_ Acquired Prototype Flight Unit. 05075_ Slammed into R-06 Scavenger. 05080_ ALERT: Cargo convoy interrupted, initiating access lockdown. 05082_ K-01 Serf cleans the Power Conduit. 05093_ Identified Cld. VTOL Module. 05101_ System corrupted: Matter fused (-5). 05110_ ALERT: Rogue bot located, Programmers report to Factory Zone 7L. 05123_ C0HU>8/4#IHF9:WAPWAE5/ZMC2T 05132_ EXIT=FOUND LOCATION=UNKNOWN GOAL=ESCAPE 05140_ 43LZUPGBBXVSMED A>=LR=9OHYJBI 05164_ 6=>ZK65=TT7%6%T%#RHLF